[Event "European Womens-ch 2025"]
[Site "Rhodes"]
[Date "2025.04.01"]
[Round "2.36"]
[White "Sliwicka, Alicja"]
[Black "Hapala, Elisabeth"]
[Result "0-1"]
[Annotator "RC"]
[ECO "B44"]
[WhiteElo "2342"]
[BlackElo "2092"]
[PlyCount "120"]
[EventDate "2025.03.29"]
[EventType "swiss"]
[EventCountry "GRE"]
[SourceTitle "playchess.com"]
[Source "ChessBase"]
[SourceQuality "1"]
[TimeControl "40/5400+30:1800+30"]

1. e4 {[%emt 0:00:03]} c5 {[%emt 0:00:03]} 2. Nf3 {[%emt 0:00:08]} e6 {[%emt 0:00:04]} 3. d4 {[%emt 0:00:06]} cxd4 {[%emt 0:00:03]} 4. Nxd4 {[%emt 0:00:06]} Nc6 {[%emt 0:00:10]} 5. Bf4 {[%emt 0:00:13]} d6 {[%emt 0:00:40]} 6. Nxc6 {[%emt 0:00:08]} bxc6 {[%emt 0:00:04]} 7. Bd3 {[%emt 0:00:46]} e5 {[%emt 0:15:49]} 8. Be3 {[%emt 0:00:11]} Nf6 {[%emt 0:00:47]} 9. O-O {[%emt 0:01:37]} Be6 {[%emt 0:03:05]} 10. c4 {[%emt 0:00:40]} Be7 {[%emt 0:00:41]} 11. Nc3 {[%emt 0:02:02]} O-O {[%emt 0:00:35]} 12. Qe2 {[%emt 0:15:01]} Qc7 {[%emt 0:30:16]} 13. h3 {[%emt 0:04:47]} Rad8 {[%emt 0:05:25]} 14. Rac1 {[%emt 0:03:09]} Qb8 {[%emt 0:00:50]} 15. Na4 {[%emt 0:10:40]} d5 {[%emt 0:10:47]} 16. Bc5 {[%emt 0:11:34]} Rfe8 {[%emt 0:03:16]} 17. Bxe7 {[%emt 0:09:08]} Rxe7 {[%emt 0:00:03]} 18. b3 {[%emt 0:02:18]} d4 {[%emt 0:07:26]} 19. c5 {[%emt 0:02:16]} g6 {[%emt 0:04:16]} 20. Nb2 {[%emt 0:03:27]} Nh5 {[%emt 0:01:29]} 21. Bc4 {[%emt 0:00:32]} Nf4 {[%emt 0:00:46]} 22. Qf3 {[%emt 0:01:21]} Bxc4 {[%emt 0:06:21]} 23. Rxc4 {[%emt 0:00:26]} Kg7 {[%emt 0:00:34]} 24. Rd1 {[%emt 0:01:49]} Rb7 {[%emt 0:01:48]} 25. Kh2 {[%emt 0:01:34]} Rb4 {[%emt 0:01:28]} 26. Rcc1 {[%emt 0:04:25]} Qc8 {[%emt 0:01:46]} 27. Nc4 {[%emt 0:01:44]} Qe6 {[%emt 0:00:18]} 28. Rd2 {[%emt 0:01:26]} Rdb8 {[%emt 0:01:22]} 29. Qg4 {[%emt 0:02:31]} f6 {[%emt 0:02:32]} 30. Nb2 {[%emt 0:01:42]} R4b5 {[%emt 0:00:57]} 31. Rc4 {[%emt 0:04:07]} Rb4 {[%emt 0:00:34]} 32. Rc1 {[%emt 0:01:49]} R4b5 {[%emt 0:00:04]} 33. g3 {[%emt 0:00:57]} Qxg4 {[%emt 0:00:06]} 34. hxg4 {[%emt 0:00:03]} Ne6 {[%emt 0:00:03]} 35. Nd3 {[%emt 0:00:06]} a5 {[%emt 0:02:19]} 36. f4 {[%emt 0:15:38]} exf4 {[%emt 0:01:06]} 37. gxf4 {[%emt 0:00:00]} g5 {[%emt 0:00:33]} 38. f5 {[%emt 0:00:00]} Nc7 {[%emt 0:00:28]} 39. Rc4 {[%emt 0:00:00]} Rd8 {[%emt 0:00:27]} 40. Kg3 {[%emt 0:00:00]} Na6 {[%emt 0:00:00]} 41. Kf3 {[%emt 0:00:47]} Nb4 {[%emt 0:13:32]} 42. Nxb4 {[%emt 0:00:45]} Rxb4 {[%emt 0:00:19]} 43. Rxb4 {[%emt 0:03:25]} axb4 {[%emt 0:00:04]} 44. Rd3 {[%emt 0:06:23]} h5 {[%emt 0:08:17]} 45. gxh5 {[%emt 0:01:03]} Kh6 {[%emt 0:00:04]} 46. Rd2 {[%emt 0:00:33]} d3 {[%emt 0:03:16]} 47. e5 {[%emt 0:04:36]} fxe5 {[%emt 0:00:06]} 48. Ke4 {[%emt 0:00:07]} Kxh5 {[%emt 0:01:51]} 49. f6 {[%emt 0:01:11]} Kg6 {[%emt 0:01:26]} 50. f7 {[%emt 0:04:00]} Kxf7 {[%emt 0:00:42]} 51. Kf5 {[%emt 0:00:03]} Rd5 {[%emt 0:02:43]} 52. Kxg5 {[%emt 0:00:05]} Rxc5 {[%emt 0:00:03]} 53. Kf5 {[%emt 0:00:06]} Rd5 {[%emt 0:00:47]} 54. Ke4 {[%emt 0:00:37]} Ke6 {[%emt 0:00:19]} 55. Ke3 {[%emt 0:00:10]} Rd4 {[%emt 0:00:44]} 56. Kf2 {[%emt 0:00:46]} e4 {[%emt 0:01:28]} 57. Ke3 {[%emt 0:01:14]} Ke5 {[%emt 0:00:35]} 58. Rh2 {[%emt 0:02:16]} d2 {[%emt 0:00:34]} 59. Rh5+ {[%emt 0:00:14]} Kd6 {[%emt 0:00:06]} 60. Rh6+ {[%emt 0:00:12]} Kc5 {[%emt 0:00:07]} 0-1

[Event "European Womens-ch 2025"]
[Site "Rhodes"]
[Date "2025.04.01"]
[Round "2.37"]
[White "Bhatia, Kanishka"]
[Black "Doluhanova, Evgeniya"]
[Result "0-1"]
[Annotator "RC"]
[ECO "C54"]
[WhiteElo "2012"]
[BlackElo "2287"]
[PlyCount "120"]
[EventDate "2025.03.29"]
[EventType "swiss"]
[EventCountry "GRE"]
[SourceTitle "playchess.com"]
[Source "ChessBase"]
[SourceQuality "1"]
[TimeControl "40/5400+30:1800+30"]

1. e4 {[%emt 0:00:04]} e5 {[%emt 0:00:04]} 2. Nf3 {[%emt 0:00:14]} Nc6 {[%emt 0:00:04]} 3. Bc4 {[%emt 0:00:27]} Bc5 {[%emt 0:00:06]} 4. c3 {[%emt 0:00:09]} Nf6 {[%emt 0:00:31]} 5. d3 {[%emt 0:00:27]} a6 {[%emt 1:32:15]} 6. a4 O-O {[%emt 0:00:00]} 7. O-O {[%emt 0:02:44]} d5 {[%emt 0:00:00]} 8. exd5 {[%emt 0:00:34]} Nxd5 {[%emt 0:00:00]} 9. h3 {[%emt 0:01:56]} Nb6 {[%emt 0:00:00]} 10. Bg5 {[%emt 1:28:55]} Be7 {[%emt 0:00:00]} 11. Bxe7 {[%emt 0:00:00]} Qxe7 {[%emt 0:00:00]} 12. Nbd2 {[%emt 0:00:00]} Nxc4 {[%emt 0:00:00]} 13. Nxc4 {[%emt 0:00:00]} Be6 {[%emt 0:00:00]} 14. Ncxe5 {[%emt 0:02:00]} Nxe5 {[%emt 0:00:00]} 15. Nxe5 {[%emt 0:00:00]} Bxh3 {[%emt 0:00:00]} 16. Re1 {[%emt 0:00:00]} Be6 {[%emt 0:00:00]} 17. Qf3 {[%emt 0:00:00]} c6 {[%emt 0:00:00]} 18. d4 {[%emt 0:00:00]} Rfe8 {[%emt 0:00:00]} 19. c4 {[%emt 0:00:00]} Rad8 {[%emt 0:00:00]} 20. Qc3 {[%emt 0:00:00]} f6 {[%emt 0:00:00]} 21. Nd3 {[%emt 0:00:00]} Qd6 {[%emt 0:00:00]} 22. Nc5 {[%emt 0:00:00]} Bc8 {[%emt 0:00:00]} 23. a5 {[%emt 0:00:00]} h5 {[%emt 0:00:00]} 24. Qf3 {[%emt 0:00:00]} Qxd4 {[%emt 0:00:00]} 25. Qxh5 {[%emt 0:00:00]} Re5 {[%emt 0:00:00]} 26. Rxe5 {[%emt 0:00:00]} fxe5 {[%emt 0:00:00]} 27. Qg5 {[%emt 0:00:00]} Rf8 {[%emt 0:00:00]} 28. Qe3 {[%emt 0:00:00]} Qxb2 {[%emt 0:00:00]} 29. Re1 {[%emt 0:00:00]} Qa2 {[%emt 0:00:00]} 30. Re2 {[%emt 0:00:00]} Qxa5 {[%emt 0:00:00]} 31. Qxe5 {[%emt 0:00:00]} b6 {[%emt 0:00:00]} 32. Nd3 {[%emt 0:00:00]} Qxe5 {[%emt 0:00:00]} 33. Nxe5 {[%emt 0:00:00]} Be6 {[%emt 0:00:00]} 34. c5 {[%emt 0:00:00]} bxc5 {[%emt 0:00:00]} 35. Nxc6 {[%emt 0:00:00]} Bd7 {[%emt 0:08:22]} 36. Ne5 {[%emt 0:00:00]} Bb5 {[%emt 0:00:49]} 37. Rc2 {[%emt 0:00:00]} Rc8 {[%emt 0:00:21]} 38. f4 {[%emt 0:00:00]} Kf8 {[%emt 0:03:16]} 39. Kf2 {[%emt 0:00:00]} Ke7 {[%emt 0:00:05]} 40. Ke3 {[%emt 0:00:00]} Ke6 {[%emt 0:00:00]} 41. Ke4 {[%emt 0:00:00]} Bc6+ {[%emt 0:05:43]} 42. Nxc6 {[%emt 0:03:22]} Rxc6 {[%emt 0:00:04]} 43. f5+ {[%emt 0:00:17]} Kf6 {[%emt 0:00:07]} 44. Kd5 {[%emt 0:00:45]} Rc8 {[%emt 0:00:13]} 45. g4 {[%emt 0:01:40]} c4 {[%emt 0:00:29]} 46. Ra2 {[%emt 0:03:52]} c3 {[%emt 0:00:24]} 47. Rxa6+ {[%emt 0:00:09]} Kg5 {[%emt 0:01:51]} 48. Ra1 {[%emt 0:04:11]} c2 {[%emt 0:00:22]} 49. Rc1 {[%emt 0:00:05]} Kxg4 {[%emt 0:00:16]} 50. Ke4 {[%emt 0:03:15]} Kg5 {[%emt 0:02:09]} 51. Rg1+ {[%emt 0:02:33]} Kf6 {[%emt 0:00:12]} 52. Rc1 {[%emt 0:00:17]} Rc7 {[%emt 0:00:15]} 53. Kf4 {[%emt 0:01:31]} Rc4+ {[%emt 0:00:06]} 54. Kg3 {[%emt 0:00:06]} Kxf5 {[%emt 0:00:04]} 55. Kf3 {[%emt 0:00:06]} g5 {[%emt 0:00:14]} 56. Ke3 {[%emt 0:00:13]} g4 {[%emt 0:00:36]} 57. Kd3 {[%emt 0:00:24]} Rc8 {[%emt 0:00:06]} 58. Ke3 {[%emt 0:00:05]} Ke5 {[%emt 0:00:36]} 59. Kd2 {[%emt 0:00:24]} Kd4 {[%emt 0:00:08]} 60. Ke2 {[%emt 0:00:13]} Kc3 {[%emt 0:00:10]} 0-1

[Event "European Womens-ch 2025"]
[Site "Rhodes"]
[Date "2025.04.01"]
[Round "2.38"]
[White "Donghvani, Nia"]
[Black "Sieber, Fiona"]
[Result "0-1"]
[Annotator "RC"]
[ECO "E53"]
[WhiteElo "2025"]
[BlackElo "2276"]
[PlyCount "166"]
[EventDate "2025.03.29"]
[EventType "swiss"]
[EventCountry "GRE"]
[SourceTitle "playchess.com"]
[Source "ChessBase"]
[SourceQuality "1"]
[TimeControl "40/5400+30:1800+30"]

1. d4 {[%emt 0:00:18]} Nf6 {[%emt 0:00:07]} 2. c4 {[%emt 0:00:24]} e6 {[%emt 0:00:22]} 3. Nf3 {[%emt 0:00:11]} d5 {[%emt 0:01:15]} 4. Nc3 {[%emt 0:00:35]} Bb4 {[%emt 0:05:13]} 5. e3 {[%emt 0:03:21]} O-O {[%emt 0:03:08]} 6. a3 {[%emt 0:04:51]} Bxc3+ {[%emt 0:03:58]} 7. bxc3 {[%emt 0:00:54]} b6 {[%emt 0:00:03]} 8. Bd3 {[%emt 0:06:05]} Ba6 {[%emt 0:03:47]} 9. cxd5 {[%emt 0:00:05]} Qxd5 {[%emt 0:01:20]} 10. O-O {[%emt 0:01:28]} c5 {[%emt 0:01:35]} 11. Bxa6 {[%emt 0:05:31]} Nxa6 {[%emt 0:00:08]} 12. Qe2 {[%emt 0:03:35]} Qb7 {[%emt 0:03:54]} 13. c4 {[%emt 0:03:57]} Rac8 {[%emt 0:02:59]} 14. Bb2 {[%emt 0:04:33]} Rfd8 {[%emt 0:12:50]} 15. Rfe1 {[%emt 0:06:29]} Nb8 {[%emt 0:01:50]} 16. Rac1 {[%emt 0:56:13]} Qe7 {[%emt 0:00:47]} 17. Red1 {[%emt 0:00:00]} Nc6 {[%emt 0:11:01]} 18. h3 {[%emt 0:01:00]} Na5 19. Ne5 {[%emt 0:00:00]} Nd7 {[%emt 0:06:34]} 20. Nf3 {[%emt 0:00:00]} Nf6 {[%emt 0:04:15]} 21. Ne5 {[%emt 0:00:00]} Nc6 {[%emt 0:35:54]} 22. Ng4 {[%emt 0:00:00]} Nxg4 {[%emt 0:00:00]} 23. Qxg4 {[%emt 0:00:00]} Qf6 {[%emt 0:00:00]} 24. Bc3 cxd4 {[%emt 0:00:00]} 25. exd4 {[%emt 0:00:00]} Qg6 {[%emt 0:00:00]} 26. Qxg6 {[%emt 0:00:00]} hxg6 {[%emt 0:00:00]} 27. d5 {[%emt 0:00:00]} exd5 {[%emt 0:00:00]} 28. cxd5 {[%emt 0:00:00]} Ne7 {[%emt 0:00:00]} 29. d6 {[%emt 0:00:00]} Nf5 {[%emt 0:00:00]} 30. d7 {[%emt 0:00:00]} Rc7 {[%emt 0:00:00]} 31. g4 {[%emt 0:00:00]} Ne7 {[%emt 0:00:00]} 32. Bb4 {[%emt 0:00:19]} Rxc1 {[%emt 0:00:00]} 33. Rxc1 {[%emt 0:00:04]} Rxd7 {[%emt 0:00:00]} 34. Bxe7 {[%emt 0:00:14]} Rxe7 {[%emt 0:00:00]} 35. Rc8+ {[%emt 0:00:06]} Kh7 {[%emt 0:00:00]} 36. Kg2 {[%emt 0:00:03]} g5 {[%emt 0:00:00]} 37. Kg3 {[%emt 0:01:31]} Rd7 {[%emt 0:00:00]} 38. Rc3 {[%emt 0:00:04]} Rd4 {[%emt 0:00:00]} 39. f3 {[%emt 0:02:48]} Kg6 {[%emt 0:00:00]} 40. h4 {[%emt 0:00:00]} gxh4+ 41. Kxh4 {[%emt 0:01:01]} Ra4 {[%emt 0:03:28]} 42. Kg3 {[%emt 0:00:40]} Kf6 {[%emt 0:00:26]} 43. f4 {[%emt 0:03:11]} Ke6 {[%emt 0:01:16]} 44. Rd3 {[%emt 0:00:35]} Ra5 {[%emt 0:36:20]} 45. Kf3 {[%emt 0:00:57]} Rd5 {[%emt 0:00:00]} 46. Rc3 {[%emt 0:00:40]} Kd6 {[%emt 0:00:00]} 47. Ke4 {[%emt 0:00:21]} Ra5 {[%emt 0:00:00]} 48. Rd3+ {[%emt 0:06:00]} Ke6 {[%emt 0:00:00]} 49. Kf3 {[%emt 0:08:34]} f6 {[%emt 0:00:00]} 50. Re3+ {[%emt 0:12:53]} Kd6 {[%emt 0:00:00]} 51. Ke4 {[%emt 0:02:09]} g6 {[%emt 0:03:30]} 52. Rd3+ {[%emt 0:04:50]} Ke6 {[%emt 0:00:30]} 53. Kf3 {[%emt 0:00:00]} Ra4 {[%emt 0:00:00]} 54. Re3+ {[%emt 0:00:00]} Kd5 {[%emt 0:00:00]} 55. Kg3 {[%emt 0:00:53]} g5 {[%emt 0:00:00]} 56. f5 {[%emt 0:00:29]} Re4 {[%emt 0:00:00]} 57. Rd3+ {[%emt 0:00:15]} Rd4 {[%emt 0:00:00]} 58. Re3 {[%emt 0:00:04]} Kc5 {[%emt 0:03:00]} 59. Kf3 {[%emt 0:00:36]} b5 60. Re6 {[%emt 0:00:40]} Rd6 61. Re3 {[%emt 0:01:33]} a5 {[%emt 0:01:30]} 62. Rc3+ {[%emt 0:00:30]} Kd4 {[%emt 0:00:00]} 63. Rc8 {[%emt 0:00:00]} b4 {[%emt 0:00:00]} 64. axb4 axb4 65. Ke2 {[%emt 0:00:00]} Rb6 66. Kd2 {[%emt 0:00:00]} b3 67. Kc1 {[%emt 0:02:30]} b2+ {[%emt 0:00:00]} 68. Kb1 {[%emt 0:00:00]} Ke4 {[%emt 0:00:00]} 69. Rc4+ {[%emt 0:00:00]} Kf3 {[%emt 0:04:00]} 70. Ra4 {[%emt 0:00:43]} Kg3 {[%emt 0:00:30]} 71. Rc4 {[%emt 0:00:06]} Rb3 {[%emt 0:00:00]} 72. Rd4 {[%emt 0:00:17]} Rf3 {[%emt 0:00:00]} 73. Kxb2 {[%emt 0:01:54]} Rf4 {[%emt 0:01:30]} 74. Rd6 {[%emt 0:00:30]} Kxg4 {[%emt 0:00:00]} 75. Rxf6 {[%emt 0:00:00]} Rxf5 {[%emt 0:00:00]} 76. Rg6 {[%emt 0:00:00]} Kf3 {[%emt 0:01:30]} 77. Kc2 {[%emt 0:00:00]} g4 {[%emt 0:00:00]} 78. Kd2 {[%emt 0:00:00]} g3 {[%emt 0:00:00]} 79. Ke1 {[%emt 0:00:00]} g2 {[%emt 0:00:00]} 80. Rg7 {[%emt 0:00:00]} Re5+ {[%emt 0:00:00]} 81. Kd2 {[%emt 0:00:19]} Re4 {[%emt 0:00:00]} 82. Kd1 {[%emt 0:00:30]} Rg4 {[%emt 0:00:00]} 83. Rf7+ {[%emt 0:00:03]} Kg3 {[%emt 0:00:00]} 0-1

[Event "European Womens-ch 2025"]
[Site "Rhodes"]
[Date "2025.04.01"]
[Round "2.39"]
[White "Krasteva, Beloslava"]
[Black "Szente Varga, Fruzsina"]
[Result "1-0"]
[Annotator "RC"]
[ECO "E73"]
[WhiteElo "2257"]
[BlackElo "2083"]
[PlyCount "85"]
[EventDate "2025.03.29"]
[EventType "swiss"]
[EventCountry "GRE"]
[SourceTitle "playchess.com"]
[Source "ChessBase"]
[SourceQuality "1"]
[TimeControl "40/5400+30:1800+30"]

1. d4 {[%emt 0:01:29]} Nf6 {[%emt 0:00:05]} 2. c4 {[%emt 0:00:22]} g6 {[%emt 0:00:04]} 3. Nc3 {[%emt 0:00:14]} Bg7 {[%emt 0:00:05]} 4. e4 {[%emt 0:00:10]} d6 {[%emt 0:00:04]} 5. Be2 {[%emt 0:00:18]} O-O {[%emt 0:00:06]} 6. Be3 {[%emt 0:00:08]} e5 {[%emt 0:00:10]} 7. d5 {[%emt 0:00:17]} a5 {[%emt 0:00:49]} 8. h4 {[%emt 0:00:42]} h5 {[%emt 0:08:42]} 9. f3 {[%emt 0:00:14]} Na6 {[%emt 0:00:14]} 10. Qd2 {[%emt 0:01:37]} Bd7 {[%emt 0:05:14]} 11. O-O-O {[%emt 0:01:41]} Nc5 {[%emt 0:01:58]} 12. Nh3 {[%emt 0:00:30]} Na4 {[%emt 0:01:12]} 13. Ng5 {[%emt 0:11:45]} Nxc3 {[%emt 1:18:17]} 14. Qxc3 {[%emt 0:00:07]} Qb8 {[%emt 0:00:00]} 15. Kb1 {[%emt 0:14:39]} c6 {[%emt 0:00:00]} 16. dxc6 {[%emt 0:05:10]} bxc6 {[%emt 0:00:00]} 17. Qa3 {[%emt 0:05:12]} d5 {[%emt 0:00:00]} 18. cxd5 {[%emt 0:05:09]} cxd5 {[%emt 0:00:00]} 19. exd5 {[%emt 0:00:04]} Bf5+ {[%emt 0:00:00]} 20. Bd3 {[%emt 0:05:04]} Bxd3+ {[%emt 0:00:00]} 21. Rxd3 {[%emt 0:01:17]} Rd8 {[%emt 0:00:00]} 22. Rhd1 {[%emt 0:01:25]} Qb7 {[%emt 0:00:00]} 23. Ne4 {[%emt 0:04:12]} Nxe4 {[%emt 0:00:00]} 24. fxe4 {[%emt 0:00:05]} a4 {[%emt 0:00:00]} 25. R3d2 {[%emt 0:06:34]} Rdc8 {[%emt 0:00:00]} 26. Qd3 {[%emt 0:10:02]} a3 {[%emt 0:00:00]} 27. b3 {[%emt 0:00:36]} Qb4 {[%emt 0:00:00]} 28. Rc2 {[%emt 0:01:12]} Rxc2 {[%emt 0:00:00]} 29. Qxc2 {[%emt 0:00:07]} Bf8 {[%emt 0:00:00]} 30. Qc4 {[%emt 0:05:11]} Qb7 {[%emt 0:00:00]} 31. Qc6 {[%emt 0:03:24]} Qb4 {[%emt 0:00:00]} 32. Qc4 {[%emt 0:00:57]} Qb7 {[%emt 0:00:00]} 33. Rc1 {[%emt 0:01:01]} Ra6 {[%emt 0:00:28]} 34. Qc8 {[%emt 0:03:09]} Qb4 {[%emt 0:03:36]} 35. Qc4 {[%emt 0:03:31]} Qb7 {[%emt 0:00:44]} 36. Qc8 {[%emt 0:05:58]} Qxc8 {[%emt 0:00:31]} 37. Rxc8 {[%emt 0:00:05]} Kg7 {[%emt 0:00:03]} 38. Rc6 {[%emt 0:01:09]} Ra8 {[%emt 0:01:16]} 39. Bg5 {[%emt 0:00:17]} f5 {[%emt 0:01:30]} 40. d6 {[%emt 0:00:00]} Kf7 {[%emt 0:00:00]} 41. d7 {[%emt 0:02:26]} Be7 {[%emt 0:01:57]} 42. Bxe7 {[%emt 0:01:14]} Kxe7 {[%emt 0:00:04]} 43. Rc8 {[%emt 0:00:06]} 1-0

[Event "European Womens-ch 2025"]
[Site "Rhodes"]
[Date "2025.04.01"]
[Round "2.40"]
[White "Calzetta Ruiz, Monica"]
[Black "Tirpan, Ceren"]
[Result "1-0"]
[Annotator "RC"]
[ECO "B41"]
[WhiteElo "2230"]
[BlackElo "1996"]
[PlyCount "83"]
[EventDate "2025.03.29"]
[EventType "swiss"]
[EventCountry "GRE"]
[SourceTitle "playchess.com"]
[Source "ChessBase"]
[SourceQuality "1"]
[TimeControl "40/5400+30:1800+30"]

1. e4 {[%emt 0:01:13]} c5 {[%emt 0:00:07]} 2. Nf3 {[%emt 0:00:08]} e6 {[%emt 0:00:04]} 3. d4 {[%emt 0:00:06]} cxd4 {[%emt 0:00:05]} 4. Nxd4 {[%emt 0:00:06]} a6 {[%emt 0:00:04]} 5. c4 {[%emt 0:00:06]} Nf6 {[%emt 0:00:06]} 6. Nc3 {[%emt 0:00:05]} Bb4 {[%emt 0:00:04]} 7. Qd3 {[%emt 0:00:07]} O-O {[%emt 0:01:47]} 8. e5 {[%emt 0:00:27]} Ne8 {[%emt 0:00:09]} 9. Bf4 {[%emt 0:00:16]} d6 {[%emt 0:00:31]} 10. exd6 {[%emt 0:00:37]} Bxd6 {[%emt 0:00:16]} 11. Nf3 {[%emt 0:00:21]} Qe7 {[%emt 0:08:44]} 12. Bxd6 {[%emt 0:00:49]} Nxd6 {[%emt 0:00:21]} 13. O-O-O {[%emt 0:00:24]} Nf5 {[%emt 0:05:05]} 14. g4 {[%emt 0:00:30]} Nh4 {[%emt 0:00:24]} 15. Nxh4 {[%emt 0:00:25]} Qxh4 {[%emt 0:00:09]} 16. Qg3 {[%emt 0:00:04]} Qg5+ {[%emt 0:12:08]} 17. f4 {[%emt 0:03:44]} Qa5 {[%emt 0:00:28]} 18. Bd3 {[%emt 0:28:45]} b5 {[%emt 0:17:35]} 19. Qh4 {[%emt 0:02:44]} f5 {[%emt 0:04:03]} 20. gxf5 {[%emt 0:00:50]} exf5 {[%emt 0:08:22]} 21. Rhg1 {[%emt 0:13:45]} Ra7 {[%emt 0:21:12]} 22. Nd5 {[%emt 0:21:22]} Qd8 {[%emt 0:09:35]} 23. Qxd8 {[%emt 0:07:14]} Rxd8 {[%emt 0:00:07]} 24. Bxf5 {[%emt 0:02:11]} Bxf5 {[%emt 0:05:04]} 25. Nf6+ {[%emt 0:00:05]} Kf7 {[%emt 0:00:06]} 26. Rxd8 {[%emt 0:00:04]} gxf6 {[%emt 0:01:00]} 27. Rxb8 {[%emt 0:00:35]} Rc7 {[%emt 0:00:06]} 28. b3 {[%emt 0:07:43]} bxc4 {[%emt 0:01:19]} 29. b4 {[%emt 0:00:02]} c3 {[%emt 0:00:45]} 30. b5 {[%emt 0:02:20]} axb5 {[%emt 0:02:08]} 31. Rxb5 {[%emt 0:00:02]} Be4 {[%emt 0:00:09]} 32. f5 {[%emt 0:01:24]} Ra7 {[%emt 0:00:32]} 33. Rg4 {[%emt 0:01:39]} Bd3 {[%emt 0:01:25]} 34. Rd5 {[%emt 0:00:28]} Be2 {[%emt 0:00:34]} 35. Rgd4 {[%emt 0:03:22]} Rxa2 {[%emt 0:00:10]} 36. Rd7+ {[%emt 0:00:13]} Kg8 {[%emt 0:02:26]} 37. Rc7 {[%emt 0:00:15]} Ra8 {[%emt 0:00:11]} 38. Rxc3 {[%emt 0:00:28]} Bh5 {[%emt 0:00:20]} 39. Rc7 {[%emt 0:00:58]} Ra1+ {[%emt 0:01:15]} 40. Kb2 {[%emt 0:00:00]} Re1 {[%emt 0:00:00]} 41. Rdd7 {[%emt 0:05:59]} Re2+ {[%emt 0:05:42]} 42. Kc3 {[%emt 0:03:37]} 1-0

[Event "European Womens-ch 2025"]
[Site "Rhodes"]
[Date "2025.04.01"]
[Round "2.41"]
[White "Harutyunyan, Gabriela"]
[Black "Sandu, Mihaela"]
[Result "0-1"]
[Annotator "RC"]
[ECO "C85"]
[WhiteElo "1793"]
[BlackElo "2230"]
[PlyCount "120"]
[EventDate "2025.03.29"]
[EventType "swiss"]
[EventCountry "GRE"]
[SourceTitle "playchess.com"]
[Source "ChessBase"]
[SourceQuality "1"]
[TimeControl "40/5400+30:1800+30"]

1. e4 {[%emt 0:00:03]} e5 {[%emt 0:01:48]} 2. Nf3 {[%emt 0:00:25]} Nc6 {[%emt 0:00:04]} 3. Bb5 {[%emt 0:00:14]} a6 {[%emt 0:00:05]} 4. Ba4 {[%emt 0:00:07]} Nf6 {[%emt 0:00:12]} 5. O-O {[%emt 0:00:16]} Be7 {[%emt 0:00:23]} 6. Bxc6 {[%emt 0:00:15]} dxc6 {[%emt 0:00:05]} 7. d3 {[%emt 0:00:25]} Nd7 {[%emt 0:01:12]} 8. Nbd2 {[%emt 0:00:39]} f6 {[%emt 0:01:20]} 9. Nh4 {[%emt 0:03:04]} g6 {[%emt 0:06:53]} 10. Nc4 {[%emt 0:06:45]} Nc5 {[%emt 0:03:30]} 11. Bh6 {[%emt 0:07:46]} Be6 {[%emt 0:03:25]} 12. Ne3 {[%emt 0:03:35]} Bf7 {[%emt 0:01:47]} 13. Nf3 {[%emt 0:02:38]} Qd7 {[%emt 0:01:16]} 14. a4 {[%emt 0:03:25]} a5 {[%emt 0:05:01]} 15. Qd2 {[%emt 0:07:03]} b6 {[%emt 0:09:12]} 16. h3 {[%emt 0:05:47]} Be6 {[%emt 0:01:52]} 17. Qe2 {[%emt 0:09:40]} Bxh3 {[%emt 0:07:56]} 18. Nxe5 {[%emt 0:05:53]} fxe5 {[%emt 0:02:49]} 19. gxh3 {[%emt 0:00:08]} Ne6 {[%emt 0:14:32]} 20. Qg4 {[%emt 0:05:20]} O-O-O {[%emt 0:00:12]} 21. Nc4 {[%emt 0:02:00]} Bf6 {[%emt 0:00:25]} 22. b4 {[%emt 0:01:54]} g5 {[%emt 0:14:15]} 23. Qf5 {[%emt 0:03:30]} Nd4 {[%emt 0:03:47]} 24. Qxf6 {[%emt 0:09:48]} Qxh3 {[%emt 0:01:09]} 25. f3 {[%emt 0:00:49]} Qg3+ {[%emt 0:07:08]} 26. Kh1 {[%emt 0:00:13]} Qh3+ {[%emt 0:03:38]} 27. Kg1 {[%emt 0:00:09]} Ne2+ {[%emt 0:00:42]} 28. Kf2 {[%emt 0:00:37]} Qh2+ {[%emt 0:00:17]} 29. Ke3 {[%emt 0:02:44]} Nd4 {[%emt 0:01:14]} 30. Rf2 {[%emt 0:01:08]} Nxc2+ {[%emt 0:00:15]} 31. Ke2 {[%emt 0:00:38]} Nd4+ {[%emt 0:00:06]} 32. Ke3 {[%emt 0:00:15]} Qf4+ {[%emt 0:01:34]} 33. Qxf4 {[%emt 0:00:43]} exf4+ {[%emt 0:04:06]} 34. Kd2 {[%emt 0:00:08]} Nb3+ {[%emt 0:00:05]} 35. Kc3 {[%emt 0:00:56]} Nxa1 {[%emt 0:00:10]} 36. bxa5 {[%emt 0:00:08]} Rhg8 {[%emt 0:00:53]} 37. Ne5 {[%emt 0:04:23]} Rd6 {[%emt 0:00:56]} 38. Ng4 {[%emt 0:00:36]} b5 {[%emt 0:01:55]} 39. axb5 {[%emt 0:02:58]} cxb5 {[%emt 0:00:05]} 40. Kb2 {[%emt 0:00:00]} Rxd3 {[%emt 0:00:00]} 41. Kxa1 {[%emt 0:02:41]} Ra3+ {[%emt 0:07:21]} 42. Kb2 {[%emt 0:00:41]} Rxa5 {[%emt 0:02:02]} 43. e5 {[%emt 0:01:37]} Ra6 {[%emt 0:02:23]} 44. Nf6 {[%emt 0:00:16]} Rg6 {[%emt 0:04:58]} 45. Rh2 {[%emt 0:01:10]} Re6 {[%emt 0:02:25]} 46. Ng4 {[%emt 0:00:43]} Re8 {[%emt 0:03:16]} 47. Rh5 {[%emt 0:00:46]} Rd8 {[%emt 0:00:14]} 48. Bxg5 {[%emt 0:00:30]} Rd3 {[%emt 0:00:27]} 49. Nf6 {[%emt 0:03:37]} Rxf3 {[%emt 0:01:30]} 50. Nd5 {[%emt 0:01:58]} Kb7 {[%emt 0:01:05]} 51. Nxf4 {[%emt 0:02:57]} Rxg5 {[%emt 0:03:17]} 52. Rxg5 {[%emt 0:00:18]} Rxf4 {[%emt 0:00:03]} 53. e6 {[%emt 0:00:15]} c6 {[%emt 0:02:43]} 54. Rg7+ {[%emt 0:01:57]} Kb6 {[%emt 0:00:17]} 55. Rxh7 {[%emt 0:00:23]} Re4 {[%emt 0:00:11]} 56. e7 {[%emt 0:00:58]} Kc5 {[%emt 0:00:39]} 57. Rh5+ {[%emt 0:01:16]} Kd6 {[%emt 0:00:27]} 58. Rh6+ {[%emt 0:00:10]} Kd7 {[%emt 0:00:41]} 59. Kc3 {[%emt 0:00:10]} Rxe7 {[%emt 0:00:17]} 60. Kd4 {[%emt 0:00:15]} Kc7 {[%emt 0:01:17]} 0-1